fUSD/lending_fUSD_20260518
["ID","MTS","AMOUNT","RATE_DAILY","PERIOD"]
[422527988,1779037846000,-25915.80558917,0.0002,2]
[422527998,1779037846000,-537.81326358,0.0002,7]
[422527996,1779037846000,-2987.02397701,0.0002,7]
[422528004,1779037846000,-52317.08224419,0.0002,2]
[422528000,1779037846000,-200.0,0.0002,2]
[422528002,1779037846000,-1058.5393221,0.0002,2]
[422528010,1779037846000,-1490.08061639,0.0002,5]
[422528006,1779037846000,-13089.48861455,0.0002,2]
[422528013,1779037846000,-181.42,0.0002,2]
[422528017,1779037846000,-215.0785988,0.0002,7]
[422527986,1779037846000,-178.7376388,0.0002,2]
[422528015,1779037846000,-200.19,0.0002,2]
[422528008,1779037846000,-152.0,0.0002,2]
[422528042,1779037846000,-194.168,0.0002,2]
[422528040,1779037846000,-200.0,0.0002,10]
[422528035,1779037846000,-1927.0,0.0002,2]
[422528037,1779037846000,-400.0,0.0002,2]
[422528027,1779037846000,-175.87182682,0.0002,2]
[422528021,1779037846000,-508.05656336,0.0002,2]
[422528023,1779037846000,-2000.0,0.0002,2]
[422528019,1779037846000,-580.06501749,0.0002,2]
[422528025,1779037846000,-175.87182682,0.0002,2]
[422528147,1779037847000,-150.0,0.00020364,4]
[422528137,1779037847000,-150.0,0.00020237,4]
[422528139,1779037847000,-150.0,0.00020265,4]
[422528140,1779037847000,-150.0,0.00020293,4]
[422528141,1779037847000,-150.0,0.00020303,4]
[422528142,1779037847000,-150.0,0.00020322,4]
[422528136,1779037847000,-150.0,0.00020237,4]
[422528143,1779037847000,-150.0,0.00020333,2]
[422528144,1779037847000,-150.0,0.00020333,4]
[422528146,1779037847000,-150.0,0.00020351,4]
[422528153,1779037847000,-150.0,0.0002043,2]
[422528149,1779037847000,-1748.4,0.00020381,2]
[422528148,1779037847000,-150.0,0.0002038,4]
[422528151,1779037847000,-150.0,0.00020391,4]
[422528160,1779037847000,-150.0,0.00020502,4]
[422528152,1779037847000,-150.0,0.00020409,4]
[422528155,1779037847000,-150.0,0.0002043,4]
[422528156,1779037847000,-150.0,0.00020437,4]
[422528158,1779037847000,-150.0,0.0002048,4]
[422528159,1779037847000,-150.0,0.00020495,4]
[422528131,1779037847000,-150.0,0.00020207,4]
[422528145,1779037847000,-150.0,0.00020333,4]
[422528138,1779037847000,-150.0,0.00020265,4]
[422528112,1779037847000,-150.0,0.00020086,4]
[422528133,1779037847000,-150.0,0.00020225,4]
[422528114,1779037847000,-300.0,0.000201,10]
[422528113,1779037847000,-150.0,0.00020092,4]
[422528115,1779037847000,-528.03498059,0.0002012,2]
[422528117,1779037847000,-150.0,0.00020125,4]
[422528116,1779037847000,-150.0,0.00020121,4]
[422528122,1779037847000,-160.0,0.00020148,2]
[422528120,1779037847000,-150.0,0.00020141,4]
[422528119,1779037847000,-150.0,0.00020141,4]
[422528121,1779037847000,-246.0,0.00020148,2]
[422528118,1779037847000,-150.0,0.00020141,2]
[422528124,1779037847000,-182.0,0.00020148,2]
[422528157,1779037847000,-150.0,0.00020466,4]
[422528129,1779037847000,-580.06501749,0.000202,2]
[422528127,1779037847000,-150.0,0.00020149,4]
[422528123,1779037847000,-154.0,0.00020148,2]
[422528128,1779037847000,-150.0,0.00020178,4]
[422528125,1779037847000,-174.0,0.00020148,2]
[422528126,1779037847000,-158.0,0.00020148,2]
[422528130,1779037847000,-508.05656336,0.000202,2]
[422528132,1779037847000,-150.0,0.00020214,4]
[422528135,1779037847000,-150.0,0.00020237,2]
[422528134,1779037847000,-150.0,0.00020236,4]
[422528154,1779037847000,-150.0,0.0002043,4]
[422528227,1779037847000,-150.0,0.00020719,2]
[422528164,1779037847000,-150.0,0.00020526,4]
[422528192,1779037847000,-150.0,0.00020581,4]
[422528194,1779037847000,-150.0,0.00020581,4]
[422528196,1779037847000,-747.8093786,0.00020594,2]
[422528209,1779037847000,-2494.55939289,0.00020595,2]
[422528207,1779037847000,-1712.93078312,0.00020595,2]
[422528211,1779037847000,-150.0,0.0002061,4]
[422528213,1779037847000,-150.0,0.00020623,2]
[422528215,1779037847000,-150.0,0.00020623,4]
[422528225,1779037847000,-150.0,0.00020696,4]
[422528226,1779037847000,-22962.33398337,0.000207,2]
[422528228,1779037847000,-150.0,0.00020719,4]
[422528223,1779037847000,-150.0,0.00020687,4]
[422528217,1779037847000,-150.0,0.00020623,4]
[422528222,1779037847000,-150.0,0.00020668,4]
[422528224,1779037847000,-150.0,0.00020687,4]
[422528221,1779037847000,-150.0,0.00020657,4]
[422528220,1779037847000,-150.0,0.00020641,4]
[422528219,1779037847000,-169.84,0.00020639,2]
[422528229,1779037847000,-150.0,0.00020719,4]
[422528230,1779037847000,-150.0,0.00020725,4]
[422528150,1779037847000,-150.0,0.00020391,4]
[422528205,1779037847000,-251.11897888,0.00020595,2]
[422528190,1779037847000,-150.0,0.0002058,2]
[422528218,1779037847000,-150.0,0.00020639,4]
[422528200,1779037847000,-209.40437684,0.00020595,2]
[422528203,1779037847000,-200.0,0.00020595,2]
[422528163,1779037847000,-150.0,0.00020526,4]
[422528166,1779037847000,-150.0,0.00020536,2]
[422528168,1779037847000,-150.0,0.00020536,2]
[422528171,1779037847000,-3980.73,0.00020548,2]
[422528165,1779037847000,-150.0,0.00020536,2]
[422528161,1779037847000,-150.0,0.00020524,4]
[422528162,1779037847000,-150.0,0.00020526,2]
[422528173,1779037847000,-3980.73,0.00020548,2]
[422528182,1779037847000,-150.0,0.0002058,2]
[422528170,1779037847000,-927.0,0.00020536,2]
[422528184,1779037847000,-150.0,0.0002058,2]
[422528174,1779037847000,-3980.72,0.00020548,2]
[422528186,1779037847000,-150.0,0.0002058,2]
[422528175,1779037847000,-2771.76,0.00020548,2]
[422528180,1779037847000,-150.0,0.0002058,2]
[422528177,1779037847000,-150.0,0.00020569,4]
[422528176,1779037847000,-150.0,0.00020552,4]
[422528178,1779037847000,-150.0,0.0002058,2]
[422528198,1779037847000,-599.60298507,0.00020594,2]
[422528172,1779037847000,-3980.73,0.00020548,2]
[422528188,1779037847000,-150.0,0.0002058,2]
[422528305,1779037848000,-150.0,0.000211,4]
[422528299,1779037848000,-150.0,0.00021056,4]
[422528295,1779037848000,-776.0,0.0002105,2]
[422528297,1779037848000,-544.0,0.0002105,2]
[422528293,1779037848000,-583.0,0.0002105,2]
[422528270,1779037848000,-1209.03378583,0.00021,2]
[422528288,1779037848000,-150.0,0.00021042,4]
[422528286,1779037848000,-150.0,0.00021013,4]
[422528272,1779037848000,-199.54371661,0.00021,2]
[422528303,1779037848000,-150.0,0.00021099,4]
[422528284,1779037848000,-150.0,0.00021012,4]
[422528291,1779037848000,-2624.0,0.0002105,2]
[422528307,1779037848000,-150.0,0.00021104,4]
[422528337,1779037848000,-150.0,0.00021157,4]
[422528312,1779037848000,-150.0,0.00021104,4]
[422528310,1779037848000,-150.0,0.00021104,4]
[422528314,1779037848000,-150.0,0.00021128,4]
[422528316,1779037848000,-217.15233878,0.00021143,2]
[422528318,1779037848000,-200.0,0.00021143,2]
[422528321,1779037848000,-260.4103811,0.00021143,2]
[422528326,1779037848000,-160.0,0.00021148,2]
[422528329,1779037848000,-154.0,0.00021148,2]
[422528331,1779037848000,-182.0,0.00021148,2]
[422528335,1779037848000,-158.0,0.00021148,2]
[422528323,1779037848000,-2586.85809042,0.00021143,2]
[422528342,1779037848000,-150.0,0.00021189,4]
[422528268,1779037848000,-150.0,0.00020984,4]
[422528301,1779037848000,-150.0,0.00021071,4]
[422528266,1779037848000,-150.0,0.00020955,4]
[422528235,1779037848000,-150.0,0.00020779,4]
[422528282,1779037848000,-150.0,0.00021008,4]
[422528232,1779037848000,-150.0,0.00020754,4]
[422528240,1779037848000,-150.0,0.00020815,4]
[422528231,1779037848000,-150.0,0.00020746,4]
[422528233,1779037848000,-500.0,0.00020754,7]
[422528234,1779037848000,-700.0,0.00020754,7]
[422528340,1779037848000,-150.0,0.00021186,4]
[422528236,1779037848000,-150.0,0.00020783,4]
[422528237,1779037848000,-698.24,0.000208,2]
[422528238,1779037848000,-150.0,0.00020811,4]
[422528239,1779037848000,-150.0,0.00020815,4]
[422528241,1779037848000,-150.0,0.00020815,4]
[422528242,1779037848000,-5754.0,0.00020829,2]
[422528251,1779037848000,-150.0,0.00020898,4]
[422528254,1779037848000,-150.0,0.00020912,4]
[422528247,1779037848000,-150.0,0.00020869,4]
[422528249,1779037848000,-150.0,0.00020898,4]
[422528244,1779037848000,-150.0,0.00020835,4]
[422528256,1779037848000,-150.0,0.00020912,4]
[422528258,1779037848000,-150.0,0.00020912,4]
[422528243,1779037848000,-150.0,0.00020835,4]
[422528260,1779037848000,-150.0,0.00020918,4]
[422528245,1779037848000,-150.0,0.0002084,4]
[422528262,1779037848000,-150.0,0.00020923,4]
[422528264,1779037848000,-150.0,0.00020927,4]
[422528274,1779037848000,-1230.48948908,0.00021,7]
[422528276,1779037848000,-160.0,0.00021,7]
[422528278,1779037848000,-150.0,0.00021008,4]
[422528280,1779037848000,-150.0,0.00021008,4]
[422528324,1779037848000,-246.0,0.00021148,2]
[422528333,1779037848000,-174.0,0.00021148,2]
[422528355,1779037848000,-150.0,0.00021297,4]
[422528379,1779037848000,-225.15420585,0.000215,2]
[422528375,1779037848000,-150.0,0.0002149,4]
[422528378,1779037848000,-58336.63162231,0.000215,2]
[422528376,1779037848000,-150.0,0.0002149,4]
[422528381,1779037848000,-150.0,0.00021531,4]
[422528383,1779037848000,-150.0,0.00021544,4]
[422528384,1779037848000,-150.0,0.0002156,4]
[422528385,1779037848000,-150.0,0.00021586,4]
[422528382,1779037848000,-150.0,0.00021531,4]
[422528392,1779037848000,-150.0,0.00021646,4]
[422528389,1779037848000,-150.0,0.0002161,4]
[422528393,1779037848000,-150.0,0.00021675,4]
[422528387,1779037848000,-150.0,0.00021586,4]
[422528377,1779037848000,-6715.0,0.00021499,2]
[422528390,1779037848000,-150.0,0.00021617,4]
[422528386,1779037848000,-150.0,0.00021586,4]
[422528391,1779037848000,-150.0,0.00021632,4]
[422528395,1779037848000,-150.0,0.00021683,4]
[422528397,1779037848000,-225.18697532,0.00021691,2]
[422528398,1779037848000,-200.0,0.00021691,2]
[422528394,1779037848000,-150.0,0.00021683,4]
[422528396,1779037848000,-150.0,0.00021683,4]
[422528399,1779037848000,-270.0455652,0.00021691,2]
[422528404,1779037848000,-150.0,0.00021721,4]
[422528403,1779037848000,-150.0,0.00021721,4]
[422528344,1779037848000,-150.0,0.00021195,4]
[422528400,1779037848000,-2682.57183977,0.00021691,2]
[422528402,1779037848000,-152.0,0.0002172,30]
[422528388,1779037848000,-150.0,0.00021589,4]
[422528374,1779037848000,-150.0,0.0002149,4]
[422528401,1779037848000,-150.0,0.00021704,4]
[422528373,1779037848000,-150.0,0.00021474,4]
[422528371,1779037848000,-150.0,0.00021455,4]
[422528354,1779037848000,-150.0,0.00021278,4]
[422528345,1779037848000,-150.0,0.00021201,4]
[422528347,1779037848000,-150.0,0.00021201,4]
[422528353,1779037848000,-150.0,0.00021278,4]
[422528350,1779037848000,-150.0,0.00021214,4]
[422528351,1779037848000,-150.0,0.00021243,4]
[422528348,1779037848000,-342.8,0.00021205,2]
[422528349,1779037848000,-150.0,0.00021214,4]
[422528352,1779037848000,-150.0,0.00021272,4]
[422528356,1779037848000,-150.0,0.00021297,4]
[422528358,1779037848000,-150.0,0.00021301,4]
[422528360,1779037848000,-150.0,0.00021333,4]
[422528346,1779037848000,-150.0,0.00021201,4]
[422528368,1779037848000,-150.0,0.00021426,4]
[422528357,1779037848000,-150.0,0.00021297,4]
[422528372,1779037848000,-150.0,0.00021472,4]
[422528369,1779037848000,-150.0,0.00021426,4]
[422528370,1779037848000,-150.0,0.00021445,4]
[422528380,1779037848000,-150.0,0.00021502,4]
[422528362,1779037848000,-150.0,0.00021366,4]
[422528363,1779037848000,-150.0,0.00021387,4]
[422528366,1779037848000,-150.0,0.00021393,4]
[422528367,1779037848000,-150.0,0.00021416,4]
[422528364,1779037848000,-150.0,0.00021393,4]
[422528359,1779037848000,-150.0,0.0002133,4]
[422528361,1779037848000,-150.0,0.00021358,4]
[422528365,1779037848000,-150.0,0.00021393,4]
[422528445,1779037849000,-450.0,0.00022,2]
[422528444,1779037849000,-300.0,0.00022,2]
[422528441,1779037849000,-114220.41375752,0.00022,4]
[422528452,1779037849000,-544.0,0.0002205,2]
[422528433,1779037849000,-150.0,0.00021934,4]
[422528434,1779037849000,-150.0,0.00021963,4]
[422528437,1779037849000,-150.0,0.00021972,4]
[422528439,1779037849000,-150.0,0.00021992,4]
[422528435,1779037849000,-150.0,0.00021972,4]
[422528436,1779037849000,-150.0,0.00021972,4]
[422528442,1779037849000,-813.13523417,0.00022,7]
[422528443,1779037849000,-160.0,0.00022,2]
[422528451,1779037849000,-776.0,0.0002205,2]
[422528446,1779037849000,-150.0,0.0002202,4]
[422528449,1779037849000,-2624.0,0.0002205,2]
[422528448,1779037849000,-150.0,0.00022049,4]
[422528450,1779037849000,-583.0,0.0002205,2]
[422528454,1779037849000,-150.0,0.00022068,4]
[422528465,1779037849000,-169.0,0.00022148,2]
[422528462,1779037849000,-150.0,0.00022136,4]
[422528464,1779037849000,-179.47870466,0.00022148,2]
[422528456,1779037849000,-150.0,0.00022076,4]
[422528460,1779037849000,-31517.9958144,0.00022107,2]
[422528438,1779037849000,-150.0,0.00021987,4]
[422528459,1779037849000,-150.0,0.00022107,4]
[422528447,1779037849000,-150.0,0.00022026,4]
[422528432,1779037849000,-150.0,0.00021918,2]
[422528428,1779037849000,-261.1828,0.00021918,2]
[422528429,1779037849000,-5000.0,0.00021918,2]
[422528455,1779037849000,-150.0,0.00022068,4]
[422528407,1779037849000,-150.0,0.00021761,4]
[422528405,1779037849000,-150.0,0.00021733,4]
[422528406,1779037849000,-150.0,0.00021749,4]
[422528416,1779037849000,-150.0,0.00021848,4]
[422528408,1779037849000,-150.0,0.00021779,4]
[422528412,1779037849000,-150.0,0.0002181,4]
[422528415,1779037849000,-150.0,0.00021848,4]
[422528409,1779037849000,-150.0,0.00021779,4]
[422528413,1779037849000,-150.0,0.00021819,4]
[422528410,1779037849000,-150.0,0.00021779,4]
[422528414,1779037849000,-1866.06,0.00021838,2]
[422528431,1779037849000,-151.0,0.00021918,2]
[422528411,1779037849000,-150.0,0.0002179,4]
[422528417,1779037849000,-150.0,0.00021875,4]
[422528419,1779037849000,-150.0,0.00021875,4]
[422528420,1779037849000,-150.0,0.00021877,4]
[422528422,1779037849000,-625.0,0.00021897,2]
[422528426,1779037849000,-150.0,0.00021905,4]
[422528423,1779037849000,-1354.0,0.00021897,2]
[422528425,1779037849000,-150.0,0.00021898,4]
[422528421,1779037849000,-150.0,0.00021887,4]
[422528424,1779037849000,-1270.0,0.00021897,2]
[422528427,1779037849000,-3075.54,0.00021918,2]
[422528430,1779037849000,-1004.62,0.00021918,2]
[422528440,1779037849000,-500.8620181,0.00021999,2]
[422528418,1779037849000,-150.0,0.00021875,4]
[422528453,1779037849000,-150.0,0.00022068,4]
[422528463,1779037849000,-253.45405378,0.00022148,2]
[422528458,1779037849000,-526.82970228,0.000221,7]
[422528504,1779037849000,-500.0,0.000225,2]
[422528497,1779037849000,-36009.8973857,0.000225,2]
[422528505,1779037849000,-500.0,0.000225,2]
[422528502,1779037849000,-500.0,0.000225,2]
[422528494,1779037849000,-365.63,0.00022466,2]
[422528500,1779037849000,-500.0,0.000225,2]
[422528501,1779037849000,-500.0,0.000225,2]
[422528498,1779037849000,-500.0,0.000225,2]
[422528503,1779037849000,-500.0,0.000225,2]
[422528499,1779037849000,-500.0,0.000225,2]
[422528507,1779037849000,-600.0,0.000225,2]
[422528506,1779037849000,-500.0,0.000225,2]
[422528493,1779037849000,-1694.95,0.00022466,2]
[422528508,1779037849000,-3657.25469867,0.000226,2]
[422528511,1779037849000,-200.0,0.00022787,2]
[422528521,1779037849000,-312270.16260368,0.00023,2]
[422528510,1779037849000,-242.15909246,0.00022787,2]
[422528514,1779037849000,-329.02108089,0.00022831,2]
[422528512,1779037849000,-290.39862941,0.00022787,2]
[422528513,1779037849000,-2884.75459676,0.00022787,2]
[422528520,1779037849000,-648.55480983,0.00023,7]
[422528517,1779037849000,-700.0,0.00022946,7]
[422528516,1779037849000,-500.0,0.00022946,7]
[422528515,1779037849000,-698.24,0.000229,7]
[422528518,1779037849000,-1292.99485246,0.0002295,2]
[422528519,1779037849000,-4756.25301534,0.00023,2]
[422528509,1779037849000,-530.8644361,0.0002271,2]
[422528495,1779037849000,-593.83,0.00022466,2]
[422528461,1779037849000,-243.66988495,0.0002211,2]
[422528489,1779037849000,-2781.82699784,0.00022239,2]
[422528496,1779037849000,-474.64,0.00022466,2]
[422528457,1779037849000,-150.0,0.00022078,4]
[422528466,1779037849000,-194.0,0.00022148,2]
[422528468,1779037849000,-169.0,0.00022148,2]
[422528469,1779037849000,-500.0,0.00022155,2]
[422528470,1779037849000,-188.21085344,0.00022164,4]
[422528474,1779037849000,-225.34182188,0.00022164,4]
[422528471,1779037849000,-150.0,0.00022164,4]
[422528473,1779037849000,-215.37855506,0.00022164,4]
[422528476,1779037849000,-299.89040453,0.00022164,4]
[422528475,1779037849000,-151.31876581,0.00022164,4]
[422528467,1779037849000,-183.0,0.00022148,2]
[422528478,1779037849000,-150.0,0.00022164,4]
[422528472,1779037849000,-181.6530724,0.00022164,4]
[422528477,1779037849000,-253.51377421,0.00022164,4]
[422528479,1779037849000,-198.32038673,0.00022164,4]
[422528490,1779037849000,-1748.4,0.00022353,2]
[422528487,1779037849000,-200.0,0.00022239,2]
[422528486,1779037849000,-233.51889341,0.00022239,2]
[422528481,1779037849000,-1200.0,0.00022181,2]
[422528492,1779037849000,-1575.83,0.00022466,2]
[422528491,1779037849000,-1756.73,0.00022466,2]
[422528488,1779037849000,-280.03725112,0.00022239,2]
[422528483,1779037849000,-1223.0,0.00022206,2]
[422528485,1779037849000,-3632.0,0.00022206,2]
[422528484,1779037849000,-417.0,0.00022206,2]
[422528480,1779037849000,-204.10498506,0.00022164,4]
[422528482,1779037849000,-450.0,0.00022181,7]
[422528561,1779037850000,-1582.847602,0.0002375,2]
[422528564,1779037850000,-300.0,0.000239,8]
[422528563,1779037850000,-260.4103811,0.00023883,2]
[422528565,1779037850000,-500.0,0.000239,8]
[422528556,1779037850000,-927.0,0.00023536,2]
[422528553,1779037850000,-2991.49051684,0.00023335,2]
[422528557,1779037850000,-1866.06,0.00023677,2]
[422528555,1779037850000,-10810.88657553,0.00023393,2]
[422528554,1779037850000,-1737.48354152,0.00023393,2]
[422528550,1779037850000,-251.11897888,0.00023335,2]
[422528566,1779037850000,-482.15270711,0.00023938,2]
[422528558,1779037850000,-329.02108089,0.00023744,2]
[422528562,1779037850000,-3181.588162,0.0002375,2]
[422528579,1779037850000,-1748.4,0.00024324,2]
[422528568,1779037850000,-3600.0,0.00024,2]
[422528572,1779037850000,-924.5986133,0.00024055,2]
[422528570,1779037850000,-500.0,0.00024,2]
[422528571,1779037850000,-97617.1281717,0.00024055,2]
[422528573,1779037850000,-3387.835273,0.00024091,2]
[422528569,1779037850000,-1254.40750477,0.00024,2]
[422528575,1779037850000,-8653.8839373,0.00024091,2]
[422528585,1779037850000,-325.0,0.00024397,2]
[422528574,1779037850000,-70323.7171552,0.00024091,2]
[422528577,1779037850000,-9999.99,0.00024174,2]
[422528583,1779037850000,-1330.1912341,0.00024397,2]
[422528580,1779037850000,-7032.6154536,0.00024341,2]
[422528552,1779037850000,-249.15724749,0.00023335,2]
[422528567,1779037850000,-1037.42246504,0.00024,2]
[422528551,1779037850000,-200.0,0.00023335,2]
[422528537,1779037850000,-300.0,0.00023095,2]
[422528548,1779037850000,-775.47832561,0.00023333,2]
[422528522,1779037850000,-2631.4902159,0.0002305,2]
[422528578,1779037850000,-3753.96495443,0.0002421,2]
[422528534,1779037850000,-161.0,0.00023092,2]
[422528523,1779037850000,-584.70135963,0.0002305,2]
[422528533,1779037850000,-221.0,0.00023088,2]
[422528528,1779037850000,-200.0,0.00023088,2]
[422528526,1779037850000,-200.0,0.00023088,2]
[422528529,1779037850000,-200.0,0.00023088,2]
[422528530,1779037850000,-200.0,0.00023088,2]
[422528525,1779037850000,-545.0,0.0002305,2]
[422528532,1779037850000,-200.0,0.00023088,2]
[422528531,1779037850000,-200.0,0.00023088,2]
[422528527,1779037850000,-200.0,0.00023088,2]
[422528536,1779037850000,-300.0,0.00023095,2]
[422528546,1779037850000,-246.78,0.00023288,4]
[422528535,1779037850000,-300.0,0.00023095,2]
[422528547,1779037850000,-1587.52,0.000233,14]
[422528542,1779037850000,-300.0,0.00023095,2]
[422528545,1779037850000,-1215.09876906,0.00023277,2]
[422528544,1779037850000,-178.53681148,0.000232,2]
[422528540,1779037850000,-300.0,0.00023095,2]
[422528538,1779037850000,-300.0,0.00023095,2]
[422528539,1779037850000,-300.0,0.00023095,2]
[422528541,1779037850000,-300.0,0.00023095,2]
[422528543,1779037850000,-172.0,0.00023095,2]
[422528549,1779037850000,-621.78829552,0.00023333,2]
[422528560,1779037850000,-782921.890631,0.0002375,2]
[422528559,1779037850000,-1108.99789053,0.00023749,10]
[422528524,1779037850000,-781.05895688,0.0002305,2]
[422528582,1779037850000,-525.27670665,0.0002439,2]
[422528581,1779037850000,-171.30607919,0.0002439,2]
[422528618,1779037850000,-599.46,0.00024658,2]
[422528616,1779037850000,-325.33,0.00024658,2]
[422528615,1779037850000,-278.35,0.00024658,2]
[422528614,1779037850000,-598.62,0.00024658,2]
[422528619,1779037850000,-625.0,0.00024897,2]
[422528623,1779037850000,-159.0,0.000249,10]
[422528633,1779037850000,-271348.35535178,0.00025,2]
[422528624,1779037850000,-277.95,0.00024946,7]
[422528622,1779037850000,-151.42946768,0.00024898,23]
[422528634,1779037850000,-1128.85797423,0.00025,2]
[422528632,1779037850000,-280.03725112,0.00024979,2]
[422528627,1779037850000,-598.62,0.00024946,7]
[422528625,1779037850000,-324.0,0.00024946,7]
[422528617,1779037850000,-408.49,0.00024658,2]
[422528629,1779037850000,-325.33,0.00024946,7]
[422528628,1779037850000,-278.35,0.00024946,7]
[422528626,1779037850000,-409.43,0.00024946,7]
[422528631,1779037850000,-599.46,0.00024946,7]
[422528636,1779037850000,-1808.80138077,0.00025,2]
[422528639,1779037850000,-7063.72083826,0.00025,21]
[422528638,1779037850000,-618.94857028,0.00025,2]
[422528635,1779037850000,-210.27121602,0.00025,2]
[422528637,1779037850000,-540.0,0.00025,2]
[422528643,1779037850000,-2229.88706687,0.00025,2]
[422528642,1779037850000,-56617.88213438,0.00025,7]
[422528641,1779037850000,-7224.00226822,0.00025,2]
[422528644,1779037850000,-169.55879635,0.00025,2]
[422528576,1779037850000,-11327.49,0.00024174,2]
[422528630,1779037850000,-408.49,0.00024946,7]
[422528611,1779037850000,-277.95,0.00024658,2]
[422528640,1779037850000,-3084.00265286,0.00025,2]
[422528613,1779037850000,-409.43,0.00024658,2]
[422528584,1779037850000,-10000.0,0.00024397,2]
[422528586,1779037850000,-474.78,0.00024397,2]
[422528588,1779037850000,-3156.14,0.00024397,2]
[422528589,1779037850000,-742.1877375,0.00024397,2]
[422528597,1779037850000,-698.24,0.000245,7]
[422528587,1779037850000,-382.75,0.00024397,2]
[422528591,1779037850000,-160.0,0.00024397,2]
[422528610,1779037850000,-457.74967326,0.00024658,2]
[422528592,1779037850000,-160.0,0.00024397,2]
[422528594,1779037850000,-160.0,0.00024397,2]
[422528593,1779037850000,-160.0,0.00024397,2]
[422528596,1779037850000,-1000.0,0.000245,2]
[422528595,1779037850000,-270.0455652,0.00024431,2]
[422528599,1779037850000,-1000.0,0.00024658,2]
[422528590,1779037850000,-500.0,0.00024397,2]
[422528600,1779037850000,-192.14,0.00024658,2]
[422528598,1779037850000,-169.84,0.00024566,2]
[422528612,1779037850000,-324.0,0.00024658,2]
[422528620,1779037850000,-1354.0,0.00024897,2]
[422528621,1779037850000,-1270.0,0.00024897,2]
[422528606,1779037850000,-151.0,0.00024658,2]
[422528603,1779037850000,-151.0,0.00024658,2]
[422528609,1779037850000,-297.854146,0.00024658,2]
[422528608,1779037850000,-151.0,0.00024658,2]
[422528607,1779037850000,-151.0,0.00024658,2]
[422528604,1779037850000,-151.0,0.00024658,2]
[422528602,1779037850000,-151.0,0.00024658,2]
[422528601,1779037850000,-151.0,0.00024658,2]
[422528605,1779037850000,-245.097139,0.00024658,2]
[422528684,1779037851000,-1927.0,0.000257,7]
[422528685,1779037851000,-500.0,0.0002579,2]
[422528683,1779037851000,-751.15126193,0.00025694,21]
[422528686,1779037851000,-5530.0,0.000258,3]
[422528687,1779037851000,-409.43,0.00025811,7]
[422528671,1779037851000,-312.25238674,0.00025252,2]
[422528673,1779037851000,-189.58548525,0.00025397,2]
[422528675,1779037851000,-409.43,0.00025523,2]
[422528677,1779037851000,-408.49,0.00025523,2]
[422528681,1779037851000,-4230.69741352,0.00025626,21]
[422528672,1779037851000,-161.09382416,0.00025397,2]
[422528679,1779037851000,-290.39862941,0.00025527,2]
[422528690,1779037851000,-599.46,0.00025811,7]
[422528695,1779037851000,-4582.9016728,0.00026,2]
[422528692,1779037851000,-5958.36102381,0.00025908,2]
[422528691,1779037851000,-31263.40837202,0.0002589,5]
[422528689,1779037851000,-408.49,0.00025811,7]
[422528693,1779037851000,-608.8270149,0.0002599,2]
[422528696,1779037851000,-219.34301534,0.00026,2]